fUST/lending_fUST_20240110
["ID","MTS","AMOUNT","RATE_DAILY","PERIOD"]
[310920758,1704820088887,-18.03034205,0.000185,2]
[310920759,1704820088915,-154.90705577,0.000185,2]
[310920760,1704820088944,-710.54936285,0.000185,2]
[310920761,1704820088990,-161.82466135,0.000185,2]
[310920762,1704820089019,-873.47101397,0.000185,2]
[310920763,1704820089058,-1035.29567532,0.000185,2]
[310920764,1704820089091,-80.37005294,0.000185,2]
[310920765,1704820089119,-247.02179605,0.000185,2]
[310920766,1704820090493,160.00795214,0.000185,2]
[310920767,1704820090635,294.3543158,0.000185,2]
[310920768,1704820091431,2191.43536751,0.000185,2]
[310920769,1704820091459,288.46722948,0.000185,2]
[310920770,1704820091488,288.46722948,0.000185,2]
[310920771,1704820091853,-694.70472361,0.000185,2]
[310920772,1704820092174,-14.17764742,0.000185,2]
[310920773,1704820092296,680.52707619,0.000185,2]
[310920774,1704820092324,694.70472361,0.000185,2]
[310920775,1704820092357,-694.70472361,0.000185,2]
[310920776,1704820092473,-619.32651112,0.00018415,2]
[310920777,1704820092504,-75.37821249,0.000185,2]
[310920778,1704820092701,-5000.0,0.000185,2]
[310920779,1704820092819,-5000.0,0.000185,2]
[310920780,1704820092982,-1997.8045426,0.000185,2]
[310920781,1704820093139,242.22231547,0.00018499,2]
[310920782,1704820094901,154.90705577,0.00016649,3]
[310920783,1704820095290,154.90705577,0.00018499,2]
[310920784,1704820096820,-279.96386304,0.00018499,2]
[310920785,1704820097005,-5.71354823,0.00018499,2]
[310920786,1704820098204,-237.68830777,0.000185,2]
[310920787,1704820098296,154.90705577,0.00018499,2]
[310920788,1704820098397,-4.85078179,0.000185,2]
[310920789,1704820098428,-260.869305,0.000185,2]
[310920790,1704820098458,-154.90705577,0.000185,2]
[310920791,1704820099021,72.71308411,0.000185,2]
[310920792,1704820099051,493.34022667,0.000185,2]
[310920793,1704820099079,493.34022667,0.000185,2]
[310920794,1704820099108,177.4049327,0.000185,2]
[310920795,1704820099199,234.80966701,0.000185,2]
[310920796,1704820099405,-202.60381681,0.000185,2]
[310920797,1704820099435,-260.24433646,0.000185,2]
[310920798,1704820099470,360.64707367,0.000185,2]
[310920799,1704820100790,317.30845138,0.000185,2]
[310920800,1704820100821,94.47471228,0.000185,2]
[310920801,1704820101156,1046.32896604,0.000185,2]
[310920802,1704820101513,453.5911902,0.00018315,2]
[310920803,1704820101544,453.5911902,0.00018315,2]
[310920804,1704820101573,255.03944973,0.00018315,2]
[310920805,1704820101602,255.03944973,0.00018315,2]
[310920806,1704820101851,-5000.0,0.00018315,2]
[310920807,1704820101948,-5000.0,0.00018315,2]
[310920808,1704820102004,-5000.0,0.00018315,2]
[310920809,1704820102069,-5000.0,0.00018315,2]
[310920810,1704820102182,-2389.32671455,0.00018315,2]
[310920811,1704820102212,-2333.8477054,0.000185,2]
[310920812,1704820102241,-276.82558005,0.000185,2]
[310920813,1704820102275,-1485.16631447,0.000185,2]
[310920814,1704820102307,-3514.83368553,0.000185,2]
[310920815,1704820102381,-5000.0,0.000185,2]
[310920816,1704820102505,-5000.0,0.000185,2]
[310920817,1704820102619,-5000.0,0.000185,2]
[310920818,1704820102725,-5000.0,0.000185,2]
[310920819,1704820102841,-5000.0,0.000185,2]
[310920820,1704820102939,-5000.0,0.000185,2]
[310920821,1704820103056,-5000.0,0.000185,2]
[310920822,1704820103165,-5000.0,0.000185,2]
[310920823,1704820103290,-5000.0,0.000185,2]
[310920824,1704820103394,-5000.0,0.000185,2]
[310920825,1704820103513,-1736.89858519,0.000185,2]
[310920826,1704820103546,-3263.10141481,0.000185,2]
[310920827,1704820103624,-245.98926642,0.000185,2]
[310920828,1704820103655,-4754.01073358,0.000185,2]
[310920829,1704820103725,-5000.0,0.000185,2]
[310920830,1704820104086,-5000.0,0.000185,2]
[310920831,1704820104120,-5000.0,0.000185,2]
[310920832,1704820104154,-5000.0,0.000185,2]
[310920833,1704820104285,-5000.0,0.000185,2]
[310920834,1704820104601,-155.64159436,0.000185,2]
[310920835,1704820104631,-155.76568917,0.000185,2]
[310920836,1704820104660,-4688.59271647,0.000185,2]
[310920837,1704820104694,-5000.0,0.000185,2]
[310920838,1704820104790,-322.3396954,0.000185,2]
[310920839,1704820104819,-4677.6603046,0.000185,2]
[310920840,1704820104897,-5000.0,0.000185,2]
[310920841,1704820104989,-5000.0,0.000185,2]
[310920842,1704820105228,-5000.0,0.000185,2]
[310920843,1704820105330,-5000.0,0.000185,2]
[310920844,1704820105472,-5000.0,0.000185,2]
[310920845,1704820105573,-5000.0,0.000185,2]
[310920846,1704820105741,-5000.0,0.000185,2]
[310920847,1704820105857,-5000.0,0.000185,2]
[310920848,1704820106003,-5000.0,0.000185,2]
[310920849,1704820106117,-5000.0,0.000185,2]
[310920850,1704820106222,-190.96827556,0.00018314,2]
[310920851,1704820106251,-4809.03172444,0.000185,2]
[310920852,1704820106330,-5000.0,0.000185,2]
[310920853,1704820106439,-4787.33425992,0.00018499,2]
[310920854,1704820106468,-212.66574008,0.000185,2]
[310920855,1704820106568,-319.48819126,0.000185,2]
[310920856,1704820106598,-4680.51180874,0.000185,2]
[310920857,1704820106648,-294.3543158,0.000185,2]
[310920858,1704820106679,-4705.6456842,0.000185,2]
[310920859,1704820106782,-162.71686372,0.00018314,2]
[310920860,1704820106819,-4837.28313628,0.000185,2]
[310920861,1704820106915,-5000.0,0.00018314,2]
[310920862,1704820107060,-313.09842743,0.00018314,2]
[310920863,1704820107136,-2672.24339147,0.00018314,2]
[310920864,1704820107178,-2327.75660853,0.000185,2]
[310920865,1704820107268,-5000.0,0.000185,2]
[310920866,1704820107390,-5000.0,0.000185,2]
[310920867,1704820107506,-2608.34271134,0.00018129,2]
[310920868,1704820107545,-2391.65728866,0.000185,2]
[310920873,1704820114786,154.90705577,0.00016649,3]
[310920874,1704820117582,1229.57016798,0.00013874,2]
[310920880,1704820136793,154.90705577,0.00016646,3]
[310920881,1704820145438,521.74935301,0.000175,2]
[310920882,1704820147381,154.90705577,0.000175,2]
[310920883,1704820153321,2099.91652736,0.000175,2]
[310920884,1704820153410,18691.8841532,0.00017203,2]
[310920885,1704820157330,154.90705577,0.0001575,2]
[310920889,1704820159898,2069.9093597,0.000175,2]
[310920890,1704820159943,299.7041061,0.000175,2]
[310920891,1704820161316,13689.20949741,0.000175,2]
[310920892,1704820161510,154.90705577,0.000175,2]
[310920893,1704820161791,1586.87251384,0.000175,2]
[310920894,1704820162216,554.01717511,0.000175,2]
[310920895,1704820162337,860.62181226,0.000175,2]
[310920896,1704820164584,261.55260087,0.000175,2]
[310920897,1704820165007,399.93081293,0.000175,2]
[310920898,1704820165116,1989.13674223,0.000175,2]
[310920899,1704820165613,521.52789577,0.000175,2]
[310920900,1704820165655,245.77715097,0.000175,2]
[310920901,1704820166544,901.51710272,0.000175,2]
[310920902,1704820167561,2099.91652736,0.000175,2]
[310920903,1704820168669,2504.18378802,0.000175,2]
[310920904,1704820169596,155.61183509,0.000175,2]
[310920905,1704820169886,264.80820677,0.000175,2]
[310920906,1704820170726,1172.31031034,0.000175,2]
[310920907,1704820171947,154.90705577,0.000175,2]
[310920908,1704820172323,1250.39757004,0.000175,2]
[310920909,1704820173601,586.93974545,0.000175,2]
[310920910,1704820175878,1094.27091443,0.000175,2]
[310920911,1704820175920,520.84270389,0.000175,2]
[310920912,1704820176802,154.90705577,0.0001575,2]
[310920913,1704820177018,399.93081293,0.000175,2]
[310920914,1704820177376,274.09423402,0.000175,2]
[310920915,1704820177965,2069.9093597,0.000175,2]
[310920916,1704820178211,946.99985386,0.000175,2]
[310920917,1704820178339,860.62181226,0.000175,2]
[310920918,1704820178429,1290.72817531,0.000175,2]
[310920919,1704820178881,285.67741127,0.000175,2]
[310920920,1704820179321,4333.57580426,0.000175,2]
[310920921,1704820179725,260.24433646,0.000175,2]
[310920922,1704820180182,2034.27485967,0.000175,2]
[310920923,1704820180222,460.70809917,0.000175,2]
[310920924,1704820180530,613.31987782,0.000175,2]
[310920925,1704820180582,154.90705577,0.000175,2]
[310920926,1704820180624,1575.56837928,0.000175,2]
[310920927,1704820181432,297.58906758,0.000175,2]
[310920928,1704820181494,606.52275476,0.000175,2]
[310920929,1704820181724,154.90705577,0.000175,2]
[310920930,1704820181926,299.7041061,0.000175,2]
[310920931,1704820182577,348.27371734,0.000175,2]
[310920932,1704820182780,1985.19300087,0.000175,2]
[310920933,1704820182919,872.3740242,0.00017499,2]
[310920934,1704820183329,525.50594084,0.000175,2]
[310920935,1704820183374,154.90705577,0.00017499,2]
[310920936,1704820183920,1736.89858519,0.00017499,2]
[310920937,1704820184236,178.40030532,0.00017499,2]
[310920942,1704820185124,1135.84470711,0.000175,2]
[310920943,1704820185280,508.90304238,0.00017499,2]
[310920944,1704820185321,2099.91652736,0.000175,2]
[310920945,1704820185367,1199.37502314,0.00017499,2]
[310920946,1704820186023,253.49803646,0.000175,2]
[310920947,1704820186069,174.82421155,0.000175,2]
[310920948,1704820186502,2484.59703634,0.000175,2]
[310920949,1704820186715,190.96827556,0.000175,2]
[310920950,1704820186757,1147.76263911,0.000175,2]
[310920951,1704820187103,642.78616711,0.000175,2]
[310920952,1704820187144,2029.47846271,0.000175,2]
[310920953,1704820187960,264.54628346,0.000175,2]
[310920954,1704820188322,1107.80003668,0.000175,2]
[310920955,1704820188666,2808.32086056,0.000175,2]
[310920956,1704820189392,7985.3418189,0.000175,2]
[310920957,1704820190355,1030.35167796,0.00017499,2]
[310920958,1704820190557,294.3543158,0.00017499,2]
[310920959,1704820191827,520.11602521,0.000175,2]
[310920960,1704820192060,154.90705577,0.000175,2]
[310920961,1704820192101,360.64707367,0.000175,2]
[310920962,1704820192142,170.42946526,0.00017499,2]
[310920963,1704820192216,976.75884677,0.000175,2]
[310920964,1704820192869,201.6827769,0.000175,2]
[310920965,1704820193035,388.49963884,0.000175,2]
[310920966,1704820193595,586.93974545,0.000175,2]
[310920967,1704820193730,301.43143671,0.000175,2]
[310920968,1704820193920,2069.9093597,0.000175,2]
[310920969,1704820194167,20828.12716016,0.000175,2]
[310920970,1704820195313,1290.72817531,0.000175,2]
[310920971,1704820195485,395.2361081,0.000175,2]
[310920972,1704820196245,2034.27485967,0.000175,2]
[310920973,1704820196289,178.40030532,0.000175,2]
[310920974,1704820196594,175.17467647,0.000175,2]
[310920975,1704820196802,154.90705577,0.0001575,2]
[310920976,1704820197725,254.0017503,0.000175,2]
[310920977,1704820197925,1831.06578711,0.000175,2]
[310920978,1704820198300,154.90705577,0.000175,2]
[310920979,1704820198601,1297.77938437,0.000175,2]
[310920980,1704820199301,508.90304238,0.000175,2]
[310920981,1704820199476,525.50594084,0.000175,2]
[310920982,1704820199526,1031.29949548,0.000175,2]
[310920983,1704820199928,299.7041061,0.000175,2]
[310920984,1704820200940,266.92170555,0.000175,2]
[310920985,1704820201100,643.98745734,0.000175,2]
[310920986,1704820201141,2035.89897846,0.000175,2]
[310920987,1704820201324,2099.91652736,0.000175,2]
[310920988,1704820201378,154.90705577,0.000175,2]
[310920989,1704820201468,582.58942355,0.000175,2]
[310920990,1704820202503,2484.59703634,0.000175,2]
[310920991,1704820203391,7985.3418189,0.000175,2]
[310920992,1704820204353,718.71386597,0.000175,2]
[310920993,1704820204676,1713.96494993,0.000175,2]
[310920994,1704820206009,274.87629673,0.000175,2]
[310920995,1704820206099,170.42946526,0.000175,2]
[310920996,1704820206135,1955.20901272,0.000175,5]
[310920997,1704820206542,294.3543158,0.000175,2]
[310920998,1704820206726,155.72221958,0.000175,2]
[310920999,1704820208031,167.96410175,0.000175,2]
[310921000,1704820208365,1030.35167796,0.000175,2]
[310921001,1704820208414,310.0060451,0.000175,2]
[310921002,1704820208872,286.47112925,0.000175,2]
[310921003,1704820209142,469.54906413,0.000175,2]
[310921006,1704820209599,586.93974545,0.000175,2]
[310921007,1704820210172,20417.40550124,0.000175,2]
[310921008,1704820210434,1290.72817531,0.000175,2]
[310921009,1704820211541,154.90705577,0.00014981,2]
[310921010,1704820212760,7941.85502117,0.000175,2]
[310921011,1704820212807,154.90705577,0.000175,3]
[310921012,1704820213921,1728.06721157,0.000175,2]
[310921013,1704820214217,528.20272084,0.000175,2]
[310921014,1704820214275,191.70740766,0.000175,2]
[310921015,1704820215312,508.90304238,0.000175,2]
[310921016,1704820215364,525.50594084,0.000175,2]
[310921017,1704820215503,3477.2521975,0.000175,2]
[310921018,1704820216304,156.17792764,0.000175,2]
[310921019,1704820216705,901.51710272,0.000175,2]
[310921020,1704820216746,412.60263682,0.000175,2]
[310921021,1704820217984,332.37384047,0.000175,2]
[310921022,1704820218229,20492.83323549,0.000175,2]
[310921080,1704820232369,-1229.57016798,0.00017498,2]
[310921114,1704820232794,154.90705577,0.00015748,2]
[310921248,1704820238457,-317.90474806,0.00017497,2]
[310921250,1704820238466,-1558.09525194,0.00017498,2]
[310921252,1704820238478,-449.08588961,0.00017498,2]
[310921254,1704820238487,-283.45925772,0.00017498,2]
[310921263,1704820238574,-38.88043768,0.00017498,2]
[310921265,1704820238585,-164.88125202,0.00017498,2]
[310921267,1704820238594,-580.77524511,0.00017498,2]
[310921269,1704820238604,-13684.29966117,0.00017498,2]
[310921271,1704820238614,-305.75165275,0.00017498,2]
[310921273,1704820238624,-1105.31149899,0.00017498,2]
[310921275,1704820238634,-154.90705577,0.00017499,2]
[310921277,1704820238643,-560.33964085,0.00017499,2]
[310921279,1704820238654,-154.90705577,0.00017499,2]
[310921281,1704820238663,-3737.09785385,0.00017499,2]
[310921282,1704820238672,-154.90705577,0.00017499,2]
[310921284,1704820238682,-294.5706679,0.00017499,2]
[310921286,1704820238691,-82497.00903012,0.00017499,2]
[310921288,1704820238700,-154.90705577,0.000175,2]
[310921290,1704820238710,-2484.59703634,0.000175,2]
[310921292,1704820238720,-469.54906413,0.000175,2]
[310921294,1704820238730,-168.17773039,0.000175,2]
[310921296,1704820238739,-3798.99565574,0.000175,2]
[310921298,1704820238750,-309.06823601,0.000175,2]
[310921300,1704820238760,-1239.33609761,0.000175,2]
[310921301,1704820238770,-2099.91652736,0.000175,2]
[310921303,1704820238781,-4300.83056334,0.000175,2]
[310921305,1704820238792,-586.93974545,0.000175,2]
[310921307,1704820238802,-2069.48614315,0.000175,2]
[310921309,1704820238813,-1030.35167796,0.000175,2]
[310921311,1704820238824,-250233.56996138,0.000175,2]
[310921314,1704820238834,-154.90705577,0.000175,2]
[310921315,1704820238843,-16198.65993903,0.00017502,2]
[310921317,1704820238853,-250.0,0.00017505,2]
[310921319,1704820238863,-3617.26465605,0.00017898,2]
[310921321,1704820238872,-154.90705577,0.00018,2]
[310921323,1704820238882,-1649.8493775,0.00018399,2]
[310921325,1704820238892,-1995.03988878,0.00018497,2]
[310921327,1704820238902,-154.90705577,0.00018497,2]
[310921329,1704820238911,-5601.45357271,0.00018498,2]
[310921331,1704820238921,-284.25470395,0.00018498,2]
[310921333,1704820238930,-245.69118916,0.00018498,2]
[310921335,1704820238942,-158.31457187,0.00018499,2]
[310921337,1704820238954,-282.95929965,0.00018499,2]
[310921339,1704820238963,-181.27243603,0.00018499,2]
[310921341,1704820238973,-155.6802552,0.00018499,2]
[310921343,1704820238983,-154.90705577,0.00018499,2]
[310921345,1704820238993,-260.37650668,0.00018499,2]
[310921347,1704820239004,-2104.62444559,0.00018499,2]
[310921349,1704820239014,-243.63101472,0.00018499,2]
[310921351,1704820239023,-246.59333994,0.000185,2]
[310921353,1704820239034,-156.56754629,0.00018501,2]
[310921354,1704820239044,-209.35290532,0.00018501,2]
[310921356,1704820239055,-15376.09177781,0.00018501,2]
[310921369,1704820239065,-159.94916056,0.00018501,2]
[310921371,1704820239197,-156.98565569,0.00018501,2]
[310921373,1704820239207,-309.7234177,0.00018501,2]
[310921375,1704820239218,-415.8862874,0.00018501,2]
[310921377,1704820239227,-294.68050852,0.00018502,2]
[310921379,1704820239237,-155.19386469,0.00018502,2]
[310921381,1704820239248,-201.84999302,0.00018502,2]
[310921383,1704820239258,-204.26075353,0.00018507,2]
[310921385,1704820239269,-295.03899156,0.00018507,2]
[310921387,1704820239279,-155.07733581,0.00018508,2]
[310921389,1704820239289,-309.29707472,0.00018508,2]
[310921391,1704820239298,-166.53442625,0.0001851,2]
[310921393,1704820239308,-284.37251424,0.0001851,2]
[310921394,1704820239318,-157.43877392,0.00018511,2]
[310921396,1704820239327,-250.6519581,0.00018519,2]
[310921398,1704820239337,-172.05259609,0.00018519,2]
[310921400,1704820239347,-163.91841894,0.00018527,2]
[310921402,1704820239358,-274.82478753,0.00018531,2]
[310921404,1704820239368,-1578.28669107,0.00019,2]
[310921406,1704820239377,-224.29925961,0.00019108,2]
[310921408,1704820239386,-158.53994952,0.00019108,2]
[310921410,1704820239396,-11005.58334538,0.00019108,2]
[310921412,1704820239405,-223.79832195,0.00019108,2]
[310921414,1704820239414,-262.76381907,0.00019108,2]
[310921415,1704820239424,-2872.41512846,0.00019108,2]
[310921417,1704820239434,-351.06782,0.00019108,2]
[310921418,1704820239444,-351.06782,0.00019108,2]
[310921420,1704820239454,-309.62844586,0.00019111,2]
[310921421,1704820239464,-155.15762727,0.00019111,2]
[310921422,1704820239474,-275.34209149,0.00019111,2]
[310921423,1704820239484,-880.89337746,0.00019125,2]
[310921424,1704820239494,-204.91963394,0.00019141,2]
[310921426,1704820239504,-156.36978952,0.00019141,2]
[310921427,1704820239514,-261.20103296,0.00019143,2]
[310921429,1704820239524,-156.47437255,0.00019143,2]
[310921431,1704820239534,-351.06782,0.00019144,2]
[310921432,1704820239544,-351.06782,0.00019144,2]
[310921433,1704820239554,-2484.964723,0.00019147,2]
[310921435,1704820239564,-2484.964723,0.00019147,2]
[310921437,1704820239574,-351.06782,0.00019147,2]
[310921438,1704820239585,-351.06782,0.00019147,2]
[310921439,1704820239596,-756.14811766,0.00019156,2]
[310921440,1704820239607,-175.754573,0.00019178,2]
[310921441,1704820239617,-1238.53593079,0.00019186,2]
[310921442,1704820239628,-1112.0110415,0.000195,2]
[310921443,1704820239639,-234.1695543,0.0002,2]
[310921444,1704820239650,-433.72625318,0.0002,2]
[310921445,1704820239661,-668.43081867,0.0002,2]
[310921446,1704820239671,-255.16835407,0.0002,2]
[310921447,1704820239681,-236.58553914,0.0002,2]
[310921448,1704820239691,-157.17804283,0.0002,2]
[310921449,1704820239701,-343.50222297,0.0002,2]
[310921450,1704820239711,-678.95864958,0.0002,2]
[310921451,1704820239721,-3083.56726515,0.0002,2]
[310921452,1704820239730,-2993.53442921,0.0002,2]
[310921453,1704820239740,-155.06991526,0.0002,2]
[310921454,1704820239750,-387.044905,0.0002,2]
[310921455,1704820239759,-387.044905,0.0002,2]
[310921456,1704820239768,-387.044905,0.0002,2]
[310921457,1704820239777,-387.044905,0.0002,2]
[310921458,1704820239787,-387.044905,0.0002,2]
[310921460,1704820239797,-439.35135649,0.0002,2]
[310921462,1704820239806,-1194.83746505,0.0002,2]
[310921464,1704820239815,-309.76768121,0.0002,2]
[310921466,1704820239825,-154.90705577,0.0002,2]
[310921467,1704820239835,-200.0,0.0002,2]
[310921469,1704820239844,-1994.72417435,0.0002024,2]
[310921471,1704820239853,-200.0,0.00020355,2]
[310921473,1704820239863,-1649.84937747,0.00020624,2]
[310921475,1704820239872,-3140.63177528,0.00021,2]
[310921477,1704820239882,-1543.36628755,0.00021,2]
[310921479,1704820239890,-193.91630954,0.00021,2]
[310921481,1704820239899,-328.13847834,0.00021,2]
[310921483,1704820239910,-1000.0,0.00021136,2]
[310921485,1704820239920,-1018.6437214,0.00021171,2]
[310921487,1704820239929,-1821.42144287,0.00021286,2]
[310921489,1704820239938,-151.686187,0.00021286,2]
[310921491,1704820239948,-282.05090519,0.00021295,2]
[310921493,1704820239957,-351.06782,0.00021295,2]
[310921495,1704820239967,-351.06782,0.00021295,2]
[310921497,1704820239977,-155.43819691,0.00021307,2]
[310921499,1704820239986,-10353.8900935,0.0002132,2]
[310921501,1704820239996,-2484.964723,0.0002132,2]
[310921503,1704820240005,-2484.964723,0.0002132,2]
[310921505,1704820240015,-327.373269,0.0002132,2]
[310921507,1704820240024,-327.373269,0.0002132,2]
[310921509,1704820240033,-166.666666,0.00021918,2]
[310921511,1704820240042,-4914.28764176,0.00022,2]
[310921513,1704820240051,-3927.64829251,0.00022,2]
[310921515,1704820240060,-156.82833971,0.00022,2]
[310921516,1704820240070,-292.76629846,0.00022,4]
[310921519,1704820240079,-151.0,0.00022,2]
[310921520,1704820240088,-300.0,0.00022159,2]
[310921522,1704820240097,-214.20599387,0.00022377,2]
[310921524,1704820240107,-166.666666,0.00022431,2]
[310921526,1704820240116,-1649.84937747,0.00022848,2]
[310921528,1704820240125,-166.666666,0.00022944,2]
[310921530,1704820240134,-6722.93832886,0.00023,2]
[310921532,1704820240144,-2092.57766549,0.00023,2]
[310921534,1704820240155,-351.06782,0.00023,2]
[310921536,1704820240165,-351.06782,0.00023,2]
[310921538,1704820240174,-250.35796176,0.00023275,2]
[310921540,1704820240183,-243.02658583,0.00023288,4]
[310921542,1704820240192,-500.0,0.00023288,4]
[310921544,1704820240202,-500.0,0.00023288,4]
[310921545,1704820240211,-503.66856439,0.00023288,4]
[310921546,1704820240220,-500.0,0.00023288,4]
[310921547,1704820240230,-421.11283707,0.00023288,4]
[310921548,1704820240239,-500.0,0.00023288,4]
[310921549,1704820240248,-500.0,0.00023288,4]
[310921550,1704820240257,-260.89705972,0.00023288,4]
[310921551,1704820240267,-262.4532003,0.00023288,4]
[310921552,1704820240276,-500.0,0.00023288,4]
[310921553,1704820240285,-194.49587957,0.00023288,4]
[310921554,1704820240294,-500.0,0.00023288,4]
[310921555,1704820240303,-500.0,0.00023288,2]
[310921556,1704820240312,-500.0,0.00023288,2]
[310921557,1704820240322,-500.0,0.00023288,2]
[310921558,1704820240332,-500.0,0.00023288,2]
[310921559,1704820240342,-500.0,0.00023288,2]
[310921560,1704820240351,-500.0,0.00023288,2]
[310921561,1704820240364,-191.67078754,0.00023288,2]
[310921562,1704820240374,-192.19579448,0.00023288,2]
[310921563,1704820240383,-164.67568328,0.00023288,2]
[310921564,1704820240392,-500.0,0.00023288,2]
[310921566,1704820240402,-500.0,0.00023288,2]
[310921568,1704820240412,-205.35309776,0.00023288,2]
[310921570,1704820240421,-325.86384888,0.00023288,2]
[310921572,1704820240430,-500.0,0.00023288,2]
[310921573,1704820240440,-500.0,0.00023288,2]
[310921575,1704820240449,-500.0,0.00023288,2]
[310921576,1704820240459,-616.58221235,0.00023288,2]
[310921578,1704820240468,-500.0,0.00023288,2]
[310921580,1704820240478,-500.0,0.00023288,2]
[310921582,1704820240487,-500.0,0.00023288,2]
[310921584,1704820240497,-500.0,0.00023288,2]
[310921586,1704820240507,-369.39788665,0.00023288,2]
[310921589,1704820240516,-499.99999999,0.00023288,2]
[310921592,1704820240526,-500.0,0.00023288,2]
[310921594,1704820240535,-500.0,0.00023288,2]
[310921596,1704820240545,-500.0,0.00023288,4]
[310921597,1704820240554,-272.10184306,0.00023288,4]
[310921598,1704820240563,-385.84055602,0.00023288,2]
[310921599,1704820240573,-394.15922462,0.00023288,4]
[310921600,1704820240582,-500.0,0.00023288,4]
[310921601,1704820240592,-500.0,0.00023288,4]
[310921602,1704820240601,-500.0,0.00023288,4]
[310921603,1704820240611,-500.0,0.00023288,4]
[310921604,1704820240621,-500.0,0.00023288,4]
[310921605,1704820240631,-282.13636398,0.00023288,4]
[310921606,1704820240640,-200.01260433,0.00023288,4]
[310921607,1704820240650,-441.86672204,0.00023288,4]
[310921608,1704820240660,-409.36887206,0.00023288,4]
[310921609,1704820240669,-276.66831502,0.00023288,2]
[310921610,1704820240679,-410.84844383,0.00023288,2]
[310921611,1704820240688,-164.33937752,0.00023288,2]
[310921612,1704820240697,-500.0,0.00023288,2]
[310921613,1704820240707,-415.00247253,0.00023288,2]
[310921614,1704820240716,-327.373269,0.00023288,2]
[310921616,1704820240726,-327.373269,0.00023288,2]
[310921618,1704820240735,-166.666666,0.00023456,2]
[310921620,1704820240745,-1000.0,0.00023779,2]
[310921622,1704820240754,-1000.0,0.00023782,2]
[310921624,1704820240763,-1000.0,0.00023785,2]
[310921626,1704820240773,-1000.0,0.00023796,2]
[310921628,1704820240781,-1000.0,0.00023848,2]
[310921630,1704820240791,-1000.0,0.00023852,2]
[310921632,1704820240800,-351.06782,0.00023852,2]
[310921633,1704820240809,-351.06782,0.00023852,2]
[310921634,1704820240819,-1000.0,0.00023861,2]
[310921635,1704820240828,-1000.0,0.00023935,2]
[310921636,1704820240837,-166.666666,0.00023969,2]
[310921637,1704820240846,-363.71399629,0.0002398,2]
[310921638,1704820240856,-2292.62638427,0.00024,2]
[310921639,1704820240865,-154.90705577,0.00024,2]
[310921640,1704820240874,-2484.964723,0.00024,2]
[310921641,1704820240883,-2484.964723,0.00024,2]
[310921642,1704820240892,-151.0,0.00024,2]
[310921643,1704820240901,-1238.53593079,0.00024186,2]
[310921644,1704820240912,-166.666666,0.00024482,2]
[310921645,1704820240920,-297.9387417,0.00024658,2]
[310921646,1704820240929,-155.24489616,0.00025,2]
[310921647,1704820240939,-4709.99124251,0.00025,2]
[310921648,1704820240948,-154.90705577,0.00025,2]
[310921649,1704820240957,-613.86507578,0.00025,2]
[310921650,1704820240967,-3000.0,0.00025,2]
[310921651,1704820240976,-154.97101708,0.00025,2]
[310921652,1704820240985,-677.25499859,0.00025,2]
[310921653,1704820240995,-1649.84937747,0.00025073,2]
[310921654,1704820241005,-978.88032498,0.000259,2]
[310921655,1704820241014,-525.7750246,0.00026,2]
[310921656,1704820241024,-3580.53429443,0.00026,2]
[310921657,1704820241033,-326.851344,0.00026296,2]
[310921658,1704820241042,-1155.35211925,0.000264,2]
[310921659,1704820241051,-394.42177439,0.0002674,2]
[310921660,1704820241060,-327.373269,0.0002674,2]
[310921661,1704820241069,-327.373269,0.0002674,2]
[310921662,1704820241078,-1000.0,0.00026747,2]